[Event "NJSK 2021 Jeugd C"]
[Site "Almelo, Netherlands"]
[Date "2021.08.05"]
[Round "7.3"]
[White "Bakija, Alan"]
[Black "Zecha, Oscar"]
[Result "1/2-1/2"]
[TimeControl "90min + 30sec/move"]
[WhiteElo "1870"]
[BlackElo "1650"]

1. c4 {[%clk 01:30:57]} {[%emt 00:00:02]} Nf6 {[%clk 01:30:54]} {[%emt
00:00:06]} 2. Nf3 {[%clk 01:31:23]} {[%emt 00:00:04]} e6 {[%clk 01:31:17]}
{[%emt 00:00:07]} 3. e3 {[%clk 01:31:47]} {[%emt 00:00:06]} d5 {[%clk
01:31:16]} {[%emt 00:00:32]} 4. Nc3 {[%clk 01:32:13]} {[%emt 00:00:04]} b6
{[%clk 01:30:57]} {[%emt 00:00:49]} 5. b3 {[%clk 01:30:51]} {[%emt 00:01:52]}
Bb7 {[%clk 01:31:04]} {[%emt 00:00:23]} 6. cxd5 {[%clk 01:29:45]} {[%emt
00:01:36]} exd5 {[%clk 01:29:27]} {[%emt 00:02:08]} 7. Bb2 {[%clk 01:29:21]}
{[%emt 00:00:53]} Nbd7 {[%clk 01:27:44]} {[%emt 00:02:13]} 8. d4 {[%clk
01:28:26]} {[%emt 00:01:26]} g6 {[%clk 01:26:30]} {[%emt 00:01:44]} 9. Rc1
{[%clk 01:21:03]} {[%emt 00:07:52]} Bg7 {[%clk 01:26:21]} {[%emt 00:00:40]} 10.
Nb5 {[%clk 01:19:54]} {[%emt 00:01:39]} O-O {[%clk 01:19:12]} {[%emt 00:07:38]}
11. Nxc7 {[%clk 01:18:48]} {[%emt 00:01:36]} Rc8 {[%clk 01:18:52]} {[%emt
00:00:51]} 12. Nb5 {[%clk 01:19:12]} {[%emt 00:00:06]} Ba6 {[%clk 01:11:18]}
{[%emt 00:08:04]} 13. Ba3 {[%clk 01:06:07]} {[%emt 00:13:35]} Bxb5 {[%clk
01:09:59]} {[%emt 00:01:48]} 14. Bxb5 {[%clk 01:04:46]} {[%emt 00:01:51]} Re8
{[%clk 01:09:30]} {[%emt 00:01:00]} 15. O-O {[%clk 01:02:01]} {[%emt 00:03:14]}
Ne4 {[%clk 01:07:36]} {[%emt 00:02:25]} 16. Rxc8 {[%clk 00:54:31]} Qxc8 {[%clk
01:07:18]} {[%emt 00:08:48]} 17. Qd3 {[%clk 00:54:36]} {[%emt 00:00:24]} Bf8
{[%clk 00:58:23]} {[%emt 00:09:25]} 18. Bxf8 {[%clk 00:39:02]} {[%emt
00:16:04]} Kxf8 {[%clk 00:57:57]} {[%emt 00:00:57]} 19. Nd2 {[%clk 00:15:44]}
{[%emt 00:23:47]} Kg7 {[%clk 00:54:22]} {[%emt 00:04:05]} 20. Nxe4 {[%clk
00:14:55]} {[%emt 00:01:19]} Rxe4 {[%clk 00:53:06]} {[%emt 00:01:45]} 21. Bxd7
{[%clk 00:13:51]} {[%emt 00:01:35]} Qxd7 {[%clk 00:53:22]} {[%emt 00:00:14]} 22.
Rc1 {[%clk 00:14:12]} {[%emt 00:00:10]} Qe7 {[%clk 00:51:55]} {[%emt 00:01:57]}
23. Qe2 {[%clk 00:09:31]} {[%emt 00:05:10]} Kh6 {[%clk 00:49:28]} {[%emt
00:02:58]} 24. Qf3 {[%clk 00:09:10]} {[%emt 00:00:50]} Kg7 {[%clk 00:49:28]}
{[%emt 00:00:31]} 25. Qe2 {[%clk 00:05:16]} {[%emt 00:04:25]} Kh6 {[%clk
00:49:28]} {[%emt 00:00:30]} 26. Qd2 {[%clk 00:04:55]} {[%emt 00:00:51]} Kg7
{[%clk 00:48:43]} {[%emt 00:01:15]} 27. b4 {[%clk 00:05:14]} {[%emt 00:00:10]}
Kh6 {[%clk 00:47:18]} {[%emt 00:01:55]} 28. a4 {[%clk 00:04:59]} {[%emt
00:00:45]} Kg7 {[%clk 00:47:24]} {[%emt 00:00:23]} 29. Qc3 {[%clk 00:04:52]}
{[%emt 00:00:36]} Kh6 {[%clk 00:46:28]} {[%emt 00:01:28]} 30. b5 {[%clk
00:04:51]} {[%emt 00:00:32]} Kg7 {[%clk 00:46:12]} {[%emt 00:00:45]} 31. Rb1
{[%clk 00:04:36]} {[%emt 00:00:45]} Kh6 {[%clk 00:45:34]} {[%emt 00:01:09]} 32.
Rb3 {[%clk 00:04:49]} {[%emt 00:00:17]} Kg7 {[%clk 00:45:19]} {[%emt 00:00:45]}
33. Qc6 {[%clk 00:04:26]} {[%emt 00:00:53]} Qd8 {[%clk 00:42:32]} {[%emt
00:03:17]} 34. Rc3 {[%clk 00:03:58]} {[%emt 00:00:58]} Re7 {[%clk 00:41:48]}
{[%emt 00:01:14]} 35. Kf1 {[%clk 00:01:22]} {[%emt 00:03:05]} Rd7 {[%clk
00:40:30]} {[%emt 00:01:47]} 36. Kg1 {[%clk 00:00:52]} {[%emt 00:01:01]} Re7
{[%clk 00:40:54]} {[%emt 00:00:07]} 37. g3 {[%clk 00:01:01]} {[%emt 00:00:20]}
Rd7 {[%clk 00:40:46]} {[%emt 00:00:38]} 38. Kg2 {[%clk 00:00:55]} {[%emt
00:00:36]} Re7 {[%clk 00:40:51]} {[%emt 00:00:26]} 39. Qc8 {[%clk 00:00:51]}
{[%emt 00:00:33]} Qd6 {[%clk 00:37:11]} {[%emt 00:04:10]} 40. Rc6 {[%clk
00:01:10]} {[%emt 00:00:11]} Qb4 {[%clk 00:36:53]} {[%emt 00:00:48]} 41. Qd8
{[%clk 00:01:20]} {[%emt 00:00:20]} Qa3 {[%clk 00:32:42]} {[%emt 00:04:41]} 42.
Qxd5 {[%clk 00:00:49]} {[%emt 00:01:02]} Qxa4 {[%clk 00:32:55]} {[%emt
00:00:17]} 43. e4 {[%clk 00:00:48]} {[%emt 00:00:31]} Qb4 {[%clk 00:30:40]}
{[%emt 00:02:45]} 44. e5 {[%clk 00:00:47]} {[%emt 00:00:31]} Qe1 {[%clk
00:29:21]} {[%emt 00:01:49]} 45. Qf3 {[%clk 00:00:45]} {[%emt 00:00:33]} Qb4
{[%clk 00:28:17]} {[%emt 00:01:34]} 46. d5 {[%clk 00:00:58]} {[%emt 00:00:16]}
Qxb5 {[%clk 00:27:34]} {[%emt 00:01:13]} 47. Qf6+ {[%clk 00:00:41]} {[%emt
00:00:47]} Kh6 {[%clk 00:27:47]} {[%emt 00:00:18]} 48. Qh4+ {[%clk 00:00:44]}
{[%emt 00:00:26]} Kg7 {[%clk 00:28:05]} {[%emt 00:00:12]} 49. Qd4 {[%clk
00:00:43]} {[%emt 00:00:31]} Kh6 {[%clk 00:26:09]} {[%emt 00:02:26]} 50. Rc4
{[%clk 00:00:52]} {[%emt 00:00:20]} a5 {[%clk 00:25:06]} {[%emt 00:01:35]} 51.
Qf4+ {[%clk 00:00:37]} {[%emt 00:00:44]} Kg7 {[%clk 00:25:03]} {[%emt
00:00:33]} 52. Qf6+ {[%clk 00:00:50]} {[%emt 00:00:18]} Kg8 {[%clk 00:25:14]}
{[%emt 00:00:18]} 53. Rc8+ {[%clk 00:00:34]} {[%emt 00:00:46]} Re8 {[%clk
00:25:38]} {[%emt 00:00:06]} 54. Rxe8+ {[%clk 00:00:37]} {[%emt 00:00:27]} Qxe8
{[%clk 00:26:07]} 55. Qxb6 {[%clk 00:00:40]} {[%emt 00:00:27]} Qxe5 {[%clk
00:26:22]} {[%emt 00:00:15]} 56. Qxa5 {[%clk 00:00:50]} {[%emt 00:00:20]} Qe4+
{[%clk 00:26:33]} {[%emt 00:00:20]} 57. Kf1 {[%clk 00:00:48]} {[%emt 00:00:31]}
Qh1+ {[%clk 00:26:12]} {[%emt 00:00:52]} 58. Ke2 {[%clk 00:01:12]} {[%emt
00:00:06]} Qe4+ {[%clk 00:26:12]} {[%emt 00:00:30]} 59. Kd1 {[%clk 00:00:33]}
{[%emt 00:01:06]} Qd3+ {[%clk 00:25:40]} {[%emt 00:01:05]} 60. Qd2 {[%clk
00:00:55]} {[%emt 00:00:07]} Qf1+ {[%clk 00:25:54]} {[%emt 00:00:16]} 61. Kc2
{[%clk 00:01:02]} {[%emt 00:00:22]} Qc4+ {[%clk 00:26:06]} {[%emt 00:00:19]} 62.
Kb2 {[%clk 00:01:24]} {[%emt 00:00:07]} Qb5+ {[%clk 00:26:25]} {[%emt
00:00:12]} 63. Ka3 {[%clk 00:00:54]} {[%emt 00:01:00]} Qc5+ {[%clk 00:26:00]}
{[%emt 00:00:55]} 64. Kb3 {[%clk 00:01:05]} {[%emt 00:00:19]} Qb5+ {[%clk
00:26:21]} {[%emt 00:00:10]} 65. Kc2 {[%clk 00:01:00]} {[%emt 00:00:35]}
1/2-1/2

[Event "NJSK 2021 Jeugd C"]
[Site "Almelo, Netherlands"]
[Date "2021.08.05"]
[Round "7.4"]
[White "Labruyere, Roger"]
[Black "Smeets, Kobe"]
[Result "1-0"]
[TimeControl "90min + 30sec/move"]
[WhiteElo "2003"]
[BlackElo "1897"]

1. d4 {[%clk 01:30:53]} {[%emt 00:00:06]} d5 {[%clk 01:30:51]} {[%emt
00:00:09]} 2. Nf3 {[%clk 01:31:21]} {[%emt 00:00:02]} e6 {[%clk 01:31:04]}
{[%emt 00:00:17]} 3. g3 {[%clk 01:31:44]} {[%emt 00:00:07]} Bd6 {[%clk
01:31:01]} {[%emt 00:00:33]} 4. Bg2 {[%clk 01:32:09]} {[%emt 00:00:05]} c6
{[%clk 01:31:25]} {[%emt 00:00:06]} 5. O-O {[%clk 01:32:17]} {[%emt 00:00:21]}
f5 {[%clk 01:31:00]} {[%emt 00:00:56]} 6. c4 {[%clk 01:30:54]} {[%emt
00:01:53]} Nf6 {[%clk 01:30:49]} {[%emt 00:00:40]} 7. Ne5 {[%clk 01:29:15]}
{[%emt 00:02:09]} O-O {[%clk 01:29:34]} {[%emt 00:01:46]} 8. f4 {[%clk
01:29:06]} {[%emt 00:00:39]} Ne4 {[%clk 01:28:07]} {[%emt 00:01:57]} 9. Nd2
{[%clk 01:23:30]} {[%emt 00:06:06]} Nd7 {[%clk 01:24:58]} {[%emt 00:03:38]} 10.
Qc2 {[%clk 01:22:27]} {[%emt 00:01:34]} Ndf6 {[%clk 01:20:57]} {[%emt
00:04:31]} 11. Nxe4 {[%clk 01:18:16]} {[%emt 00:04:41]} Nxe4 {[%clk 01:20:24]}
{[%emt 00:01:03]} 12. Bxe4 {[%clk 01:17:50]} {[%emt 00:00:56]} fxe4 {[%clk
01:19:34]} {[%emt 00:01:20]} 13. b3 {[%clk 01:18:04]} {[%emt 00:00:16]} Bd7
{[%clk 01:14:24]} {[%emt 00:05:40]} 14. a4 {[%clk 01:17:57]} {[%emt 00:00:38]}
Qe7 {[%clk 00:57:02]} {[%emt 00:17:51]} 15. Ng4 {[%clk 01:08:51]} {[%emt
00:09:36]} c5 {[%clk 00:36:21]} {[%emt 00:21:11]} 16. dxc5 {[%clk 01:02:29]}
{[%emt 00:06:52]} Bxc5+ {[%clk 00:36:43]} {[%emt 00:00:09]} 17. e3 {[%clk
01:02:30]} {[%emt 00:00:29]} Bc6 {[%clk 00:34:49]} {[%emt 00:02:24]} 18. Ne5
{[%clk 00:59:41]} {[%emt 00:03:19]} Rf5 {[%clk 00:28:47]} {[%emt 00:06:32]} 19.
cxd5 {[%clk 00:24:05]} {[%emt 00:36:07]} exd5 {[%clk 00:27:35]} {[%emt
00:01:42]} 20. Nxc6 {[%clk 00:22:12]} {[%emt 00:02:23]} bxc6 {[%clk 00:27:54]}
{[%emt 00:00:11]} 21. b4 {[%clk 00:22:32]} {[%emt 00:00:11]} Bxb4 {[%clk
00:24:26]} {[%emt 00:03:57]} 22. Qxc6 {[%clk 00:22:56]} {[%emt 00:00:06]} Rd8
{[%clk 00:24:45]} {[%emt 00:00:11]} 23. Bb2 {[%clk 00:19:37]} {[%emt 00:03:49]}
Bc5 {[%clk 00:18:19]} {[%emt 00:06:56]} 24. Rfe1 {[%clk 00:19:51]} {[%emt
00:00:16]} Rb8 {[%clk 00:13:33]} {[%emt 00:05:15]} 25. Be5 {[%clk 00:16:44]}
{[%emt 00:03:36]} Rd8 {[%clk 00:10:40]} {[%emt 00:03:23]} 26. Rad1 {[%clk
00:14:39]} {[%emt 00:02:35]} Bb4 {[%clk 00:08:16]} {[%emt 00:02:55]} 27. Re2
{[%clk 00:09:45]} {[%emt 00:05:24]} Qd7 {[%clk 00:05:42]} {[%emt 00:03:03]} 28.
Qc2 {[%clk 00:06:46]} {[%emt 00:03:30]} a5 {[%clk 00:04:31]} {[%emt 00:01:42]}
29. Qb3 {[%clk 00:05:49]} {[%emt 00:01:26]} Qe6 {[%clk 00:04:38]} {[%emt
00:00:23]} 30. Rc2 {[%clk 00:04:31]} {[%emt 00:01:48]} Rf7 {[%clk 00:04:54]}
{[%emt 00:00:14]} 31. Rd4 {[%clk 00:02:42]} {[%emt 00:02:20]} Re7 {[%clk
00:03:21]} {[%emt 00:02:03]} 32. Rc1 {[%clk 00:02:23]} {[%emt 00:00:48]} Qf7
{[%clk 00:01:49]} {[%emt 00:02:03]} 33. Rc6 {[%clk 00:01:52]} {[%emt 00:01:01]}
Red7 {[%clk 00:01:40]} {[%emt 00:00:40]} 34. Rxb4 {[%clk 00:01:11]} {[%emt
00:01:10]} axb4 {[%clk 00:02:02]} {[%emt 00:00:08]} 35. Qxb4 {[%clk 00:01:38]}
{[%emt 00:00:03]} Qh5 {[%clk 00:02:01]} {[%emt 00:00:30]} 36. Qd2 {[%clk
00:01:18]} {[%emt 00:00:51]} Rb7 {[%clk 00:02:09]} {[%emt 00:00:21]} 37. Rc1
{[%clk 00:01:32]} {[%emt 00:00:17]} Qf7 {[%clk 00:01:37]} {[%emt 00:01:03]} 38.
a5 {[%clk 00:01:44]} {[%emt 00:00:18]} h5 {[%clk 00:01:22]} {[%emt 00:00:44]}
39. Bd4 {[%clk 00:01:25]} {[%emt 00:00:48]} Ra8 {[%clk 00:01:32]} {[%emt
00:00:21]} 40. Ra1 {[%clk 00:01:26]} {[%emt 00:00:29]} h4 {[%clk 00:01:21]}
{[%emt 00:00:41]} 41. a6 {[%clk 00:01:26]} {[%emt 00:00:30]} Rc7 {[%clk
00:01:15]} {[%emt 00:00:37]} 42. a7 {[%clk 00:01:35]} {[%emt 00:00:20]} h3
{[%clk 00:01:00]} {[%emt 00:00:44]} 43. Rc1 {[%clk 00:00:55]} {[%emt 00:01:10]}
Rxc1+ {[%clk 00:00:38]} {[%emt 00:00:53]} 44. Qxc1 {[%clk 00:01:24]} Qh5 {[%clk
00:00:47]} {[%emt 00:00:21]} 45. Qd2 {[%clk 00:01:04]} {[%emt 00:00:49]} Qf3
{[%clk 00:00:59]} {[%emt 00:00:19]} 46. Bc5 {[%clk 00:01:02]} {[%emt 00:00:31]}
Rd8 {[%clk 00:00:37]} {[%emt 00:00:52]} 47. Bb6 {[%clk 00:01:05]} {[%emt
00:00:27]} Rc8 {[%clk 00:00:45]} {[%emt 00:00:23]} 48. Bc7 {[%clk 00:01:01]}
{[%emt 00:00:34]} Kh7 {[%clk 00:00:57]} {[%emt 00:00:17]} 49. Qf2 {[%clk
00:01:14]} {[%emt 00:00:17]} Qg4 {[%clk 00:00:45]} {[%emt 00:00:43]} 50. Qf1
{[%clk 00:00:58]} {[%emt 00:00:46]} Re8 {[%clk 00:00:33]} {[%emt 00:00:41]} 51.
Bb8 {[%clk 00:01:14]} {[%emt 00:00:15]} Rc8 {[%clk 00:00:34]} {[%emt 00:00:30]}
52. a8=Q {[%emt 00:00:38]} Rc2 {[%clk 00:00:44]} {[%emt 00:00:20]} 53. Qxd5
{[%clk 00:01:14]} {[%emt 00:00:21]} Rg2+ {[%clk 00:01:06]} {[%emt 00:00:08]} 54.
Qxg2 {[%clk 00:01:38]} {[%emt 00:00:06]} hxg2 {[%clk 00:01:28]} {[%emt
00:00:08]} 55. Qxe4+ {[%clk 00:02:03]} {[%emt 00:00:05]} Kh8 {[%clk 00:01:22]}
{[%emt 00:00:37]} 56. Qxg2 {[%clk 00:01:55]} {[%emt 00:00:38]} Qd1+ {[%clk
00:01:44]} {[%emt 00:00:08]} 57. Qf1 {[%clk 00:02:19]} {[%emt 00:00:06]} Qb3
{[%clk 00:02:02]} {[%emt 00:00:12]} 58. Ba7 {[%clk 00:02:40]} {[%emt 00:00:10]}
Qa3 {[%clk 00:02:16]} {[%emt 00:00:16]} 59. Bd4 {[%clk 00:03:05]} {[%emt
00:00:04]} 1-0

[Event "NJSK 2021 Jeugd C"]
[Site "Almelo, Netherlands"]
[Date "2021.08.05"]
[Round "7.5"]
[White "Kurt, Sascha"]
[Black "Katpatal, Akshaj"]
[Result "1/2-1/2"]
[TimeControl "90min + 30sec/move"]
[WhiteElo "1650"]
[BlackElo "1650"]

1. e4 {[%clk 01:30:58]} e5 {[%clk 01:30:54]} {[%emt 00:00:08]} 2. Nf3 {[%clk
01:31:22]} {[%emt 00:00:05]} Nc6 {[%clk 01:31:15]} {[%emt 00:00:09]} 3. d4
{[%clk 01:31:45]} {[%emt 00:00:07]} exd4 {[%clk 01:31:27]} {[%emt 00:00:18]} 4.
Nxd4 {[%clk 01:32:09]} {[%emt 00:00:06]} Bc5 {[%clk 01:31:10]} {[%emt
00:00:46]} 5. Be3 {[%clk 01:32:32]} {[%emt 00:00:07]} Bb6 {[%clk 01:31:15]}
{[%emt 00:00:26]} 6. Nxc6 {[%clk 01:31:20]} {[%emt 00:01:42]} bxc6 {[%clk
01:31:31]} {[%emt 00:00:14]} 7. Bxb6 {[%clk 01:31:31]} {[%emt 00:00:19]} cxb6
{[%clk 01:31:53]} {[%emt 00:00:08]} 8. Nc3 {[%clk 01:31:17]} {[%emt 00:00:44]}
Ne7 {[%clk 01:32:07]} {[%emt 00:00:16]} 9. e5 {[%clk 01:31:20]} {[%emt
00:00:27]} O-O {[%clk 01:32:11]} {[%emt 00:00:26]} 10. Bd3 {[%clk 01:30:26]}
{[%emt 00:01:24]} Ng6 {[%clk 01:32:13]} {[%emt 00:00:28]} 11. O-O {[%clk
01:30:04]} {[%emt 00:00:52]} Nf4 {[%clk 01:31:07]} {[%emt 00:01:36]} 12. Ne4
{[%clk 01:29:29]} {[%emt 00:01:05]} d5 {[%clk 01:26:53]} {[%emt 00:04:45]} 13.
exd6 {[%clk 01:24:12]} {[%emt 00:05:48]} f5 {[%emt 00:01:40]} 14. Ng3 {[%clk
01:23:39]} {[%emt 00:00:37]} Be6 {[%clk 01:19:45]} {[%emt 00:06:54]} 15. Qd2
{[%clk 01:18:21]} {[%emt 00:05:47]} Qxd6 {[%clk 01:19:51]} {[%emt 00:00:23]} 16.
Nxf5 {[%clk 01:15:13]} {[%emt 00:04:02]} Rxf5 {[%clk 01:20:01]} {[%emt
00:00:19]} 17. Rad1 {[%clk 01:12:42]} {[%emt 00:03:02]} Nxd3 {[%clk 01:20:00]}
{[%emt 00:00:31]} 18. Qxd3 {[%clk 01:12:18]} {[%emt 00:00:53]} Rd5 {[%clk
01:18:52]} {[%emt 00:01:39]} 19. Qe2 {[%clk 01:12:03]} {[%emt 00:00:44]} Rd8
{[%clk 01:18:46]} {[%emt 00:00:36]} 20. Rxd5 {[%clk 01:11:23]} {[%emt
00:01:10]} Qxd5 {[%clk 01:19:04]} {[%emt 00:00:11]} 21. b3 {[%clk 01:11:07]}
{[%emt 00:00:47]} Bf7 {[%clk 01:19:07]} {[%emt 00:00:27]} 22. Qa6 {[%clk
01:11:03]} {[%emt 00:00:35]} Bh5 {[%clk 01:18:42]} {[%emt 00:00:54]} 23. h3
{[%clk 01:09:53]} {[%emt 00:01:40]} Qf7 {[%clk 01:18:46]} {[%emt 00:00:26]} 24.
f4 {[%clk 01:09:14]} {[%emt 00:01:09]} Qe7 {[%clk 01:17:29]} {[%emt 00:01:47]}
25. Qc4+ {[%clk 01:08:54]} {[%emt 00:00:49]} Bf7 {[%clk 01:17:54]} {[%emt
00:00:07]} 26. Qxc6 {[%clk 01:07:41]} {[%emt 00:01:42]} Qc5+ {[%clk 01:18:01]}
{[%emt 00:00:22]} 27. Qxc5 {[%clk 01:08:03]} {[%emt 00:00:09]} bxc5 {[%clk
01:18:24]} {[%emt 00:00:07]} 28. Rf2 {[%clk 01:07:02]} {[%emt 00:01:31]} c4
{[%clk 01:18:06]} {[%emt 00:00:48]} 29. Re2 {[%clk 01:06:55]} {[%emt 00:00:38]}
Rd1+ {[%clk 01:16:52]} {[%emt 00:06:04]} 30. Kf2 {[%clk 01:07:58]} {[%emt
00:00:13]} Ra1 {[%clk 01:17:14]} {[%emt 00:00:07]} 31. bxc4 {[%clk 01:07:50]}
{[%emt 00:00:38]} Bxc4 {[%clk 01:17:13]} {[%emt 00:00:31]} 32. Re4 {[%clk
01:07:53]} {[%emt 00:00:27]} Bb5 {[%clk 01:16:36]} {[%emt 00:01:08]} 33. Rb4
{[%clk 01:07:43]} {[%emt 00:00:40]} a6 {[%clk 01:16:18]} {[%emt 00:00:48]} 34.
Rb2 {[%emt 00:01:42]} Kf7 {[%clk 01:15:28]} 35. g4 {[%clk 01:07:41]} {[%emt
00:00:37]} Ke6 {[%emt 00:00:33]} 36. c3 {[%clk 01:04:12]} {[%emt 00:03:57]} Rc1
{[%clk 01:15:45]} {[%emt 00:00:12]} 37. a4 {[%clk 01:04:02]} {[%emt 00:00:40]}
Bc4 {[%clk 01:14:46]} {[%emt 00:01:29]} 38. Rb6+ {[%clk 01:03:07]} {[%emt
00:01:26]} Kd5 {[%emt 00:00:14]} 39. Rb7 {[%clk 01:02:00]} {[%emt 00:01:36]}
Rc2+ {[%clk 01:14:39]} {[%emt 00:00:54]} 40. Kg3 {[%clk 01:01:40]} {[%emt
00:00:50]} Rxc3+ {[%clk 01:15:01]} {[%emt 00:00:09]} 41. Kh4 {[%clk 01:01:58]}
{[%emt 00:00:11]} Bf1 {[%clk 01:15:20]} {[%emt 00:00:10]} 42. Rxg7 {[%clk
01:01:24]} {[%emt 00:01:04]} Rxh3+ {[%clk 01:15:17]} {[%emt 00:00:34]} 43. Kg5
{[%clk 01:01:33]} {[%emt 00:00:21]} h6 {[%clk 01:15:28]} {[%emt 00:00:19]} 44.
Kf6 {[%clk 01:01:26]} {[%emt 00:00:35]} Ke4 {[%clk 01:15:01]} {[%emt 00:00:59]}
45. f5 {[%clk 01:01:00]} {[%emt 00:00:56]} Kf4 {[%clk 01:14:34]} {[%emt
00:00:57]} 46. Rg6 {[%clk 00:59:35]} {[%emt 00:01:54]} Be2 {[%clk 01:14:25]}
{[%emt 00:00:39]} 47. Kg7 {[%clk 00:59:14]} {[%emt 00:00:52]} Bxg4 {[%clk
01:14:32]} {[%emt 00:00:23]} 48. Rxa6 {[%clk 00:59:06]} {[%emt 00:00:38]} Rg3
{[%clk 01:14:35]} {[%emt 00:00:26]} 49. Rxh6 {[%clk 00:57:05]} {[%emt
00:02:32]} Bxf5+ {[%clk 01:14:48]} {[%emt 00:00:17]} 50. Kf6 {[%clk 00:57:15]}
{[%emt 00:00:19]} Bc2 {[%clk 01:14:37]} {[%emt 00:00:42]} 51. Rh4+ {[%clk
00:57:00]} {[%emt 00:00:45]} Rg4 {[%clk 01:14:26]} {[%emt 00:00:42]} 1/2-1/2

[Event "NJSK 2021 Jeugd C"]
[Site "Almelo, Netherlands"]
[Date "2021.08.05"]
[Round "7.6"]
[White "Verheij, Dana"]
[Black "Ponomarev, Ivan"]
[Result "1/2-1/2"]
[TimeControl "90min + 30sec/move"]
[WhiteElo "1931"]
[BlackElo "1723"]

1. e4 {[%clk 01:30:57]} {[%emt 00:00:03]} c5 {[%clk 01:30:57]} {[%emt
00:00:03]} 2. c3 {[%clk 01:31:23]} {[%emt 00:00:04]} e6 {[%clk 01:31:10]}
{[%emt 00:00:18]} 3. d4 {[%clk 01:31:33]} {[%emt 00:00:19]} d5 {[%clk
01:31:35]} {[%emt 00:00:05]} 4. exd5 {[%clk 01:31:40]} {[%emt 00:00:23]} Qxd5
{[%clk 01:30:59]} {[%emt 00:01:06]} 5. Nf3 {[%clk 01:31:29]} {[%emt 00:00:41]}
Nc6 {[%clk 01:28:47]} {[%emt 00:02:42]} 6. Na3 {[%clk 01:28:45]} {[%emt
00:03:14]} cxd4 {[%clk 01:25:45]} {[%emt 00:03:32]} 7. Nb5 {[%clk 01:28:16]}
{[%emt 00:00:59]} Bd6 {[%clk 01:19:20]} {[%emt 00:06:56]} 8. Nxd6+ {[%clk
01:23:37]} {[%emt 00:05:08]} Qxd6 {[%clk 01:19:44]} {[%emt 00:00:05]} 9. Nxd4
{[%clk 01:23:07]} {[%emt 00:01:01]} Nxd4 {[%clk 01:18:13]} {[%emt 00:02:01]} 10.
Qxd4 {[%clk 01:21:45]} {[%emt 00:01:51]} Qxd4 {[%clk 01:18:21]} {[%emt
00:00:23]} 11. cxd4 {[%clk 01:22:11]} {[%emt 00:00:04]} Bd7 {[%clk 01:13:36]}
{[%emt 00:05:15]} 12. Bf4 {[%clk 01:19:26]} {[%emt 00:03:15]} Ne7 {[%clk
01:07:01]} {[%emt 00:07:04]} 13. Bd3 {[%clk 01:17:41]} {[%emt 00:02:16]} Bc6
{[%clk 01:04:10]} {[%emt 00:03:21]} 14. O-O {[%clk 01:16:16]} {[%emt 00:01:56]}
O-O {[%clk 01:00:13]} {[%emt 00:04:26]} 15. Rac1 {[%clk 01:12:15]} {[%emt
00:04:31]} Rfd8 {[%clk 00:55:35]} {[%emt 00:05:07]} 16. Bg5 {[%clk 01:10:09]}
{[%emt 00:02:36]} Rd7 {[%clk 00:52:09]} {[%emt 00:03:57]} 17. Rfe1 {[%clk
01:05:30]} {[%emt 00:05:08]} h6 {[%clk 00:46:36]} {[%emt 00:06:04]} 18. Be3
{[%clk 01:01:19]} {[%emt 00:04:39]} Rad8 {[%clk 00:44:46]} {[%emt 00:02:21]} 19.
Bb1 {[%clk 00:57:59]} {[%emt 00:03:51]} Nd5 {[%clk 00:38:39]} {[%emt 00:06:37]}
20. h3 {[%clk 00:52:38]} {[%emt 00:05:49]} a6 {[%clk 00:34:48]} {[%emt
00:04:22]} 21. a3 {[%clk 00:48:17]} {[%emt 00:04:51]} Nc7 {[%clk 00:34:07]}
{[%emt 00:01:12]} 22. f4 {[%clk 00:42:52]} {[%emt 00:05:54]} Nb5 {[%clk
00:30:31]} {[%emt 00:04:06]} 23. f5 {[%clk 00:41:36]} {[%emt 00:01:46]} exf5
{[%clk 00:29:38]} {[%emt 00:01:23]} 24. Bxf5 {[%clk 00:41:54]} {[%emt
00:00:10]} Rd6 {[%clk 00:23:47]} {[%emt 00:06:23]} 25. d5 {[%clk 00:36:01]}
{[%emt 00:06:23]} Rxd5 {[%clk 00:19:33]} {[%emt 00:04:44]} 26. Bb6 {[%clk
00:35:06]} {[%emt 00:01:25]} Rb8 {[%clk 00:17:10]} {[%emt 00:02:52]} 27. Be4
{[%clk 00:32:57]} {[%emt 00:02:41]} Rd2 {[%clk 00:14:11]} {[%emt 00:03:29]} 28.
Bxc6 {[%clk 00:31:34]} {[%emt 00:01:52]} bxc6 {[%clk 00:14:24]} {[%emt
00:00:18]} 29. Rxc6 {[%clk 00:31:42]} {[%emt 00:00:21]} Rxb2 {[%clk 00:13:54]}
{[%emt 00:01:00]} 30. a4 {[%clk 00:28:37]} {[%emt 00:03:35]} Na3 {[%clk
00:11:44]} {[%emt 00:02:39]} 31. a5 {[%clk 00:27:13]} {[%emt 00:01:56]} Rc2
{[%clk 00:09:38]} {[%emt 00:02:36]} 32. Rxc2 {[%clk 00:19:14]} {[%emt
00:08:29]} Nxc2 {[%clk 00:10:04]} {[%emt 00:00:03]} 33. Re7 {[%clk 00:19:32]}
{[%emt 00:00:10]} Nb4 {[%clk 00:09:28]} {[%emt 00:01:07]} 34. Rd7 {[%clk
00:19:11]} {[%emt 00:00:51]} Rc8 {[%clk 00:08:36]} {[%emt 00:01:23]} 35. Rd4
{[%clk 00:18:23]} {[%emt 00:01:17]} Nc2 {[%clk 00:07:52]} {[%emt 00:01:15]} 36.
Rd7 {[%clk 00:18:38]} {[%emt 00:00:14]} Ra8 {[%clk 00:07:39]} {[%emt 00:00:41]}
37. Kf2 {[%clk 00:18:23]} {[%emt 00:00:48]} Na3 {[%clk 00:07:46]} {[%emt
00:00:23]} 38. Rc7 {[%clk 00:16:18]} {[%emt 00:02:30]} Nb5 {[%clk 00:07:50]}
{[%emt 00:00:30]} 39. Rd7 {[%clk 00:16:35]} {[%emt 00:00:13]} g5 {[%clk
00:07:47]} {[%emt 00:00:34]} 40. Kf3 {[%clk 00:16:33]} {[%emt 00:00:32]} Kg7
{[%clk 00:08:04]} {[%emt 00:00:12]} 41. g3 {[%clk 00:15:50]} {[%emt 00:01:12]}
Kg6 {[%clk 00:08:25]} {[%emt 00:00:10]} 42. Ke4 {[%clk 00:14:36]} {[%emt
00:01:42]} Rc8 {[%clk 00:08:22]} {[%emt 00:00:34]} 43. Rd3 {[%clk 00:14:11]}
{[%emt 00:00:53]} f5+ {[%clk 00:06:53]} {[%emt 00:02:02]} 44. Kd5 {[%clk
00:13:56]} {[%emt 00:00:39]} f4 {[%clk 00:06:55]} {[%emt 00:00:34]} 45. gxf4
{[%clk 00:13:15]} {[%emt 00:01:11]} gxf4 {[%clk 00:07:09]} {[%emt 00:00:15]} 46.
Ke5 {[%clk 00:13:26]} {[%emt 00:00:18]} Rf8 {[%clk 00:07:06]} {[%emt 00:00:35]}
47. Rf3 {[%clk 00:13:29]} {[%emt 00:00:27]} Kg5 {[%clk 00:07:21]} {[%emt
00:00:15]} 48. Ke6 {[%clk 00:11:11]} {[%emt 00:02:47]} Rc8 {[%clk 00:07:07]}
{[%emt 00:00:44]} 49. Ke5 {[%clk 00:10:03]} {[%emt 00:01:38]} h5 {[%clk
00:06:45]} {[%emt 00:00:52]} 50. h4 {[%clk 00:08:35]} {[%emt 00:01:59]} Kxh4
{[%clk 00:04:58]} {[%emt 00:02:17]} 51. Ke4 {[%emt 00:00:22]} 1/2-1/2